fUST/lending_fUST_20240825
["ID","MTS","AMOUNT","RATE_DAILY","PERIOD"]
[335852721,1724531552621,-417179.21419119,0.00035,30]
[335852722,1724531552646,-1053.04076046,0.00035,120]
[335852723,1724531552673,-3000.0,0.00035271,42]
[335852724,1724531552701,-151.0,0.00035425,120]
[335852725,1724531552725,-511.42,0.000355,120]
[335852726,1724531552753,-400.0,0.00035616,60]
[335852727,1724531552780,-151.0,0.00035836,120]
[335852728,1724531552805,-1000.0,0.00036,120]
[335852729,1724531552831,-869.71149076,0.0003609,120]
[335852730,1724531552857,-151.0,0.00036329,120]
[335852731,1724531552882,-3000.0,0.00036407,42]
[335852732,1724531552907,-549.0,0.000365,120]
[335852733,1724531552932,-310.90001872,0.000368,30]
[335852734,1724531552957,-300.713003,0.00037,120]
[335852735,1724531552984,-102348.06570913,0.00037,30]
[335852736,1724531553010,-1127.27911158,0.0003707,31]
[335852737,1724531553037,-151.0,0.00037233,120]
[335852738,1724531553066,-18838.77197373,0.0003726,30]
[335852739,1724531553092,-7956.58190603,0.0003726,30]
[335852740,1724531553119,-3000.0,0.00037542,42]
[335852741,1724531553147,-151.0,0.00037781,120]
[335852742,1724531553175,-364875.49752438,0.0003786,120]
[335852743,1724531553202,-1000.0,0.00038,120]
[335852744,1724531553228,-300.0,0.00038,120]
[335852745,1724531553253,-6170.0,0.00038,30]
[335852746,1724531553279,-527.14795013,0.00038,30]
[335852747,1724531553306,-151.0,0.00038137,120]
[335852748,1724531553333,-11751.59,0.00038356,120]
[335852749,1724531553360,-407.98142712,0.00038356,120]
[335852750,1724531553386,-617.85705492,0.00038356,120]
[335852751,1724531553413,-2814.98,0.00038356,120]
[335852752,1724531553438,-472.80456478,0.00038356,60]
[335852841,1724532638131,-3094.20831595,0.00012516,2]
[335852843,1724532638141,-555.417968,0.00012877,2]
[335852845,1724532638151,-1500.0,0.00012898,2]
[335852847,1724532638160,-695.14803561,0.00012934,2]
[335852849,1724532638170,-174.92435112,0.00012971,2]
[335852851,1724532638179,-2283.63676209,0.00012971,3]
[335852853,1724532638189,-300.0,0.00012984,2]
[335852855,1724532638198,-300.0,0.00012984,2]
[335852857,1724532638209,-154.74467129,0.00012991,2]
[335852858,1724532638219,-862.94176999,0.00013,2]
[335852860,1724532638228,-500.0,0.00013,2]
[335852862,1724532638237,-544.22652236,0.00013051,2]
[335852864,1724532638247,-156.30594485,0.00013333,2]
[335852865,1724532638257,-2000.0,0.00013488,2]
[335852867,1724532638265,-154.74467129,0.00013496,2]
[335852869,1724532638275,-154.74467129,0.00013496,2]
[335852870,1724532638284,-120639.889109,0.00013568,2]
[335852872,1724532638293,-241279.778217,0.00013578,2]
[335852874,1724532638302,-88888.0,0.00013588,2]
[335852875,1724532638311,-222.41622981,0.00013597,2]
[335852877,1724532638320,-413.88106461,0.00013597,2]
[335852878,1724532638330,-289.43590531,0.00013599,2]
[335852879,1724532638340,-306.47265928,0.00013599,2]
[335852880,1724532638350,-150.112233,0.000136,2]
[335852881,1724532638359,-150.112233,0.000136,2]
[335852882,1724532638368,-150.112233,0.000136,2]
[335852883,1724532638377,-150.112233,0.000136,2]
[335852884,1724532638389,-158.8,0.00013673,2]
[335852885,1724532638399,-500.0,0.00013673,2]
[335852886,1724532638409,-159.0,0.00013673,2]
[335852887,1724532638419,-500.0,0.00013673,2]
[335852888,1724532638428,-500.0,0.00013673,2]
[335852889,1724532638438,-449.97377135,0.00013673,2]
[335852890,1724532638448,-500.0,0.00013673,2]
[335852891,1724532638460,-120639.889109,0.00013678,2]
[335852892,1724532638469,-495.40667807,0.00013688,2]
[335852893,1724532638478,-700.8496746,0.00013697,2]
[335852894,1724532638487,-155.23257901,0.00013697,2]
[335852895,1724532638497,-289.45768342,0.00013697,2]
[335852896,1724532638507,-196.90814632,0.00013697,2]
[335852897,1724532638517,-420.88450278,0.00013697,2]
[335852898,1724532638526,-500.0,0.00013698,2]
[335852899,1724532638536,-500.0,0.00013698,2]
[335852900,1724532638545,-500.0,0.00013698,2]
[335852901,1724532638555,-500.0,0.00013698,2]
[335852902,1724532638564,-506.58545164,0.00013698,2]
[335852903,1724532638573,-632.09630291,0.00013698,2]
[335852904,1724532638583,-500.0,0.00013698,2]
[335852905,1724532638593,-202.44085024,0.00013698,2]
[335852906,1724532638603,-500.0,0.00013698,2]
[335852907,1724532638614,-500.0,0.00013698,2]
[335852908,1724532638624,-500.0,0.00013698,2]
[335852909,1724532638633,-500.0,0.00013698,2]
[335852910,1724532638644,-500.0,0.00013698,2]
[335852911,1724532638653,-500.0,0.00013698,2]
[335852912,1724532638663,-400.8377683,0.00013698,2]
[335852913,1724532638673,-500.0,0.00013698,2]
[335852914,1724532638683,-500.0,0.00013698,2]
[335852915,1724532638692,-500.0,0.00013698,2]
[335852916,1724532638702,-500.0,0.00013698,2]
[335852917,1724532638712,-500.0,0.00013698,2]
[335852918,1724532638722,-484.3692746,0.00013698,2]
[335852919,1724532638731,-405.79911202,0.00013698,2]
[335852920,1724532638740,-500.0,0.00013698,2]
[335852921,1724532638750,-500.0,0.00013698,2]
[335852922,1724532638759,-500.0,0.00013698,2]
[335852923,1724532638768,-500.0,0.00013698,2]
[335852924,1724532638778,-500.0,0.00013698,2]
[335852925,1724532638787,-500.0,0.00013698,2]
[335852926,1724532638797,-500.0,0.00013698,2]
[335852927,1724532638806,-500.0,0.00013698,2]
[335852928,1724532638817,-500.0,0.00013698,2]
[335852929,1724532638826,-358.39981128,0.00013698,2]
[335852930,1724532638835,-500.0,0.00013698,2]
[335852931,1724532638846,-500.0,0.00013698,2]
[335852932,1724532638856,-1154.56387759,0.00013698,2]
[335852933,1724532638866,-1154.56387759,0.00013698,2]
[335852934,1724532638876,-1154.56387759,0.00013698,2]
[335852935,1724532638885,-1154.56387759,0.00013698,2]
[335852936,1724532638895,-1154.56387759,0.00013698,2]
[335852937,1724532638905,-1154.56387759,0.00013698,2]
[335852938,1724532638914,-1154.56387759,0.00013698,2]
[335852939,1724532638924,-1154.56387759,0.00013698,2]
[335852940,1724532638933,-1154.56387759,0.00013698,2]
[335852941,1724532638943,-1154.56387759,0.00013698,2]
[335852942,1724532638953,-1154.56387759,0.00013698,2]
[335852943,1724532638963,-1154.56387759,0.00013698,2]
[335852944,1724532638973,-1154.56387759,0.00013698,2]
[335852945,1724532638983,-1154.56387759,0.00013698,2]
[335852946,1724532638992,-1154.56387759,0.00013698,2]
[335852947,1724532639002,-1154.56387759,0.00013698,2]
[335852948,1724532639011,-500.0,0.00013698,2]
[335852949,1724532639021,-500.0,0.00013698,2]
[335852950,1724532639030,-500.0,0.00013698,2]
[335852951,1724532639040,-500.0,0.00013698,2]
[335852952,1724532639049,-1657.83531144,0.00013698,2]
[335852953,1724532639058,-500.0,0.00013698,2]
[335852954,1724532639068,-500.0,0.00013698,2]
[335852955,1724532639077,-548.26085861,0.00013698,2]
[335852956,1724532639086,-500.0,0.00013698,2]
[335852957,1724532639095,-505.88122665,0.00013698,2]
[335852958,1724532639105,-500.0,0.00013698,2]
[335852959,1724532639114,-513.24810199,0.00013698,2]
[335852960,1724532639123,-500.0,0.00013698,2]
[335852961,1724532639133,-500.0,0.00013698,2]
[335852962,1724532639142,-500.0,0.00013698,2]
[335852963,1724532639151,-500.0,0.00013698,2]
[335852964,1724532639160,-500.0,0.00013698,2]
[335852965,1724532639169,-500.0,0.00013698,2]
[335852966,1724532639178,-500.0,0.00013698,2]
[335852967,1724532639188,-500.0,0.00013698,2]
[335852968,1724532639198,-500.0,0.00013698,2]
[335852969,1724532639207,-500.0,0.00013698,2]
[335852970,1724532639216,-500.0,0.00013698,2]
[335852971,1724532639225,-451.24341597,0.00013698,2]
[335852972,1724532639235,-500.0,0.00013698,2]
[335852973,1724532639245,-500.0,0.00013698,2]
[335852974,1724532639254,-500.0,0.00013698,2]
[335852975,1724532639264,-500.0,0.00013698,2]
[335852976,1724532639273,-500.0,0.00013698,2]
[335852977,1724532639283,-500.0,0.00013698,2]
[335852978,1724532639292,-388.01515087,0.00013698,2]
[335852979,1724532639301,-500.0,0.00013698,2]
[335852980,1724532639311,-502.71665386,0.00013698,2]
[335852981,1724532639320,-500.0,0.00013698,2]
[335852982,1724532639330,-500.0,0.00013698,2]
[335852983,1724532639340,-500.0,0.00013698,2]
[335852984,1724532639349,-503.31442808,0.00013698,2]
[335852985,1724532639359,-500.0,0.00013698,2]
[335852986,1724532639368,-500.0,0.00013698,2]
[335852987,1724532639378,-500.0,0.00013698,2]
[335852988,1724532639389,-500.0,0.00013698,2]
[335852989,1724532639401,-500.0,0.00013698,2]
[335852990,1724532639410,-500.0,0.00013698,2]
[335852991,1724532639420,-500.0,0.00013698,2]
[335852992,1724532639430,-500.0,0.00013698,2]
[335852993,1724532639440,-500.0,0.00013698,2]
[335852994,1724532639449,-500.0,0.00013698,2]
[335852995,1724532639460,-616.21891281,0.00013698,2]
[335852996,1724532639470,-155.12815248,0.00013698,2]
[335852997,1724532639481,-500.0,0.00013698,2]
[335852998,1724532639490,-500.0,0.00013698,2]
[335852999,1724532639500,-239.78585948,0.00013698,2]
[335853000,1724532639518,-500.0,0.00013698,2]
[335853001,1724532639529,-500.0,0.00013698,2]
[335853002,1724532639539,-500.0,0.00013698,2]
[335853003,1724532639550,-325.96166249,0.00013698,2]
[335853004,1724532639560,-500.00000001,0.00013698,2]
[335853005,1724532639570,-500.0,0.00013698,2]
[335853006,1724532639579,-500.0,0.00013698,2]
[335853007,1724532639590,-620.0,0.00013698,2]
[335853008,1724532639600,-500.0,0.00013698,2]
[335853009,1724532639611,-500.0,0.00013698,2]
[335853010,1724532639621,-500.0,0.00013698,2]
[335853013,1724532639891,-500.0,0.00013698,2]
[335853014,1724532639901,-500.0,0.00013698,2]
[335853016,1724532639912,-500.0,0.00013698,2]
[335853018,1724532639921,-500.0,0.00013698,2]
[335853019,1724532639930,-503.11997067,0.00013698,2]
[335853020,1724532639940,-500.0,0.00013698,2]
[335853021,1724532639950,-500.0,0.00013698,2]
[335853022,1724532639960,-500.0,0.00013698,2]
[335853024,1724532639969,-500.0,0.00013698,2]
[335853025,1724532639979,-500.0,0.00013698,2]
[335853026,1724532639989,-500.0,0.00013698,2]
[335853027,1724532639999,-331.58030529,0.00013698,2]
[335853028,1724532640008,-500.0,0.00013698,2]
[335853029,1724532640018,-500.0,0.00013698,2]
[335853030,1724532640028,-502.79952749,0.00013698,2]
[335853031,1724532640037,-500.0,0.00013698,2]
[335853032,1724532640047,-500.0,0.00013698,2]
[335853033,1724532640061,-220.32718634,0.00013698,2]
[335853034,1724532640072,-500.0,0.00013698,2]
[335853035,1724532640081,-500.0,0.00013698,2]
[335853036,1724532640091,-500.0,0.00013698,2]
[335853037,1724532640101,-500.0,0.00013698,2]
[335853038,1724532640112,-500.0,0.00013698,2]
[335853039,1724532640122,-500.0,0.00013698,2]
[335853041,1724532640132,-500.0,0.00013698,2]
[335853043,1724532640142,-261.76018332,0.00013698,2]
[335853044,1724532640152,-416.69687738,0.00013698,2]
[335853045,1724532640162,-500.0,0.00013698,2]
[335853046,1724532640171,-500.0,0.00013698,2]
[335853047,1724532640181,-500.0,0.00013698,2]
[335853048,1724532640191,-500.0,0.00013698,2]
[335853049,1724532640200,-500.0,0.00013698,2]
[335853050,1724532640211,-500.0,0.00013698,2]
[335853051,1724532640221,-500.0,0.00013698,2]
[335853052,1724532640230,-500.0,0.00013698,2]
[335853053,1724532640240,-500.0,0.00013698,2]
[335853054,1724532640250,-500.0,0.00013698,2]
[335853055,1724532640259,-500.0,0.00013698,2]
[335853056,1724532640269,-500.0,0.00013698,2]
[335853057,1724532640279,-545.76,0.00013698,2]
[335853058,1724532640288,-500.0,0.00013698,2]
[335853059,1724532640298,-500.0,0.00013698,2]
[335853060,1724532640308,-500.0,0.00013698,2]
[335853061,1724532640318,-500.0,0.00013698,2]
[335853062,1724532640328,-579.67,0.00013698,2]
[335853063,1724532640337,-500.0,0.00013698,2]
[335853064,1724532640347,-596.33,0.00013698,2]
[335853065,1724532640357,-500.0,0.00013698,2]
[335853066,1724532640367,-500.0,0.00013698,2]
[335853067,1724532640377,-500.0,0.00013698,2]
[335853068,1724532640388,-500.0,0.00013698,2]
[335853069,1724532640399,-500.0,0.00013698,2]
[335853070,1724532640409,-500.0,0.00013698,2]
[335853071,1724532640419,-500.0,0.00013698,2]
[335853072,1724532640429,-500.0,0.00013698,2]
[335853073,1724532640440,-500.0,0.00013698,2]
[335853074,1724532640450,-500.0,0.00013698,2]
[335853075,1724532640459,-500.0,0.00013698,2]
[335853076,1724532640470,-500.0,0.00013698,2]
[335853077,1724532640480,-500.0,0.00013698,2]
[335853078,1724532640490,-500.0,0.00013698,2]
[335853079,1724532640503,-500.0,0.00013698,2]
[335853080,1724532640513,-500.0,0.00013698,2]
[335853081,1724532640523,-500.0,0.00013698,2]
[335853082,1724532640533,-500.0,0.00013698,2]
[335853083,1724532640543,-500.0,0.00013698,2]
[335853084,1724532640553,-500.0,0.00013698,2]
[335853085,1724532640563,-500.0,0.00013698,2]
[335853086,1724532640572,-500.0,0.00013698,2]
[335853087,1724532640583,-500.0,0.00013698,2]
[335853088,1724532640592,-500.0,0.00013698,2]
[335853089,1724532640602,-500.0,0.00013698,2]
[335853090,1724532640612,-584.22870234,0.00013698,2]
[335853091,1724532640622,-500.0,0.00013698,2]
[335853092,1724532640632,-500.0,0.00013698,2]
[335853093,1724532640642,-527.63769833,0.00013698,2]
[335853094,1724532640652,-500.0,0.00013698,2]
[335853095,1724532640662,-500.0,0.00013698,2]
[335853096,1724532640672,-500.0,0.00013698,2]
[335853097,1724532640681,-500.0,0.00013698,2]
[335853098,1724532640691,-500.0,0.00013698,2]
[335853099,1724532640701,-500.0,0.00013698,2]
[335853100,1724532640712,-500.0,0.00013698,2]
[335853101,1724532640722,-500.0,0.00013698,2]
[335853102,1724532640732,-500.0,0.00013698,2]
[335853103,1724532640742,-500.0,0.00013698,2]
[335853104,1724532640752,-610.6,0.00013698,2]
[335853105,1724532640763,-612.65,0.00013698,2]
[335853106,1724532640772,-500.0,0.00013698,2]
[335853107,1724532640783,-500.0,0.00013698,2]
[335853108,1724532640792,-500.0,0.00013698,2]
[335853109,1724532640802,-500.0,0.00013698,2]
[335853110,1724532640812,-500.0,0.00013698,2]
[335853111,1724532640822,-500.0,0.00013698,2]
[335853112,1724532640832,-500.0,0.00013698,2]
[335853113,1724532640842,-442.44977797,0.00013698,2]
[335853114,1724532640851,-647.73,0.00013698,2]
[335853115,1724532640862,-500.0,0.00013698,2]
[335853116,1724532640872,-502.12274204,0.00013698,2]
[335853117,1724532640882,-500.0,0.00013698,2]
[335853118,1724532640892,-502.79844456,0.00013698,2]
[335853119,1724532640903,-500.0,0.00013698,2]
[335853120,1724532640914,-501.48307279,0.00013698,2]
[335853121,1724532640924,-656.12,0.00013698,2]
[335853122,1724532640934,-500.0,0.00013698,2]
[335853123,1724532640944,-500.0,0.00013698,2]
[335853124,1724532640954,-500.0,0.00013698,2]
[335853125,1724532640973,-500.0,0.00013698,2]
[335853126,1724532640984,-500.0,0.00013698,2]
[335853127,1724532640994,-500.0,0.00013698,2]
[335853128,1724532641004,-547.22665791,0.00013698,2]
[335853129,1724532641013,-500.0,0.00013698,2]
[335853130,1724532641022,-500.0,0.00013698,2]
[335853131,1724532641032,-500.0,0.00013698,2]
[335853132,1724532641041,-502.74548938,0.00013698,2]
[335853133,1724532641051,-500.0,0.00013698,2]
[335853134,1724532641061,-500.0,0.00013698,2]
[335853135,1724532641072,-500.0,0.00013698,2]
[335853136,1724532641081,-581.33552731,0.00013698,2]
[335853137,1724532641091,-500.0,0.00013698,2]
[335853138,1724532641100,-500.0,0.00013698,2]
[335853139,1724532641110,-500.0,0.00013698,2]
[335853140,1724532641120,-557.73,0.00013698,2]
[335853141,1724532641129,-500.0,0.00013698,2]
[335853142,1724532641139,-500.0,0.00013698,2]
[335853143,1724532641149,-500.0,0.00013698,2]
[335853144,1724532641159,-500.0,0.00013698,2]
[335853145,1724532641169,-500.0,0.00013698,2]
[335853146,1724532641179,-500.0,0.00013698,2]
[335853147,1724532641189,-555.29,0.00013698,2]
[335853148,1724532641200,-601.53830752,0.00013698,2]
[335853149,1724532641211,-500.0,0.00013698,2]
[335853150,1724532641221,-500.0,0.00013698,2]
[335853151,1724532641231,-500.0,0.00013698,2]
[335853152,1724532641240,-500.0,0.00013698,2]
[335853153,1724532641250,-545.98,0.00013698,2]
[335853154,1724532641260,-500.0,0.00013698,2]
[335853155,1724532641271,-750.22,0.00013698,2]
[335853156,1724532641281,-500.0,0.00013698,2]
[335853157,1724532641291,-712.26,0.00013698,2]
[335853158,1724532641301,-599.33,0.00013698,2]
[335853159,1724532641311,-500.0,0.00013698,2]
[335853160,1724532641320,-260.0,0.00013698,2]
[335853161,1724532641330,-258.0,0.00013698,2]
[335853162,1724532641340,-500.0,0.00013698,2]
[335853163,1724532641350,-523.07,0.00013698,2]
[335853164,1724532641360,-500.0,0.00013698,2]
[335853165,1724532641370,-500.0,0.00013698,2]
[335853166,1724532641388,-677.98,0.00013698,2]
[335853167,1724532641404,-500.0,0.00013698,2]
[335853168,1724532641414,-500.0,0.00013698,2]
[335853169,1724532641424,-503.90593166,0.00013698,2]
[335853170,1724532641435,-683.23,0.00013698,2]
[335853171,1724532641444,-501.20213021,0.00013698,2]
[335853172,1724532641455,-500.0,0.00013698,2]
[335853173,1724532641466,-738.46,0.00013698,2]
[335853174,1724532641477,-500.0,0.00013698,2]
[335853175,1724532641487,-618.69,0.00013698,2]
[335853176,1724532641497,-500.71268256,0.00013698,2]
[335853177,1724532641507,-500.0,0.00013698,2]
[335853178,1724532641518,-500.0,0.00013698,2]
[335853179,1724532641528,-701.19,0.00013698,2]
[335853180,1724532641539,-500.0,0.00013698,2]
[335853181,1724532641549,-552.55,0.00013698,2]
[335853182,1724532641560,-500.0,0.00013698,2]
[335853183,1724532641570,-552.55,0.00013698,2]
[335853184,1724532641580,-552.55,0.00013698,2]
[335853185,1724532641590,-603.64,0.00013698,2]
[335853186,1724532641600,-552.55,0.00013698,2]
[335853187,1724532641613,-500.0,0.00013698,2]
[335853188,1724532641622,-552.55,0.00013698,2]
[335853189,1724532641632,-552.55,0.00013698,2]
[335853190,1724532641643,-552.55,0.00013698,2]
[335853191,1724532641653,-552.55,0.00013698,2]
[335853192,1724532641663,-500.0,0.00013698,2]
[335853193,1724532641673,-552.55,0.00013698,2]
[335853194,1724532641683,-552.55,0.00013698,2]
[335853195,1724532641693,-552.55,0.00013698,2]
[335853196,1724532641703,-552.55,0.00013698,2]
[335853197,1724532641713,-552.55,0.00013698,2]
[335853198,1724532641723,-500.0,0.00013698,2]
[335853199,1724532641733,-500.0,0.00013698,2]
[335853200,1724532641743,-500.0,0.00013698,2]
[335853201,1724532641752,-500.0,0.00013698,2]
[335853202,1724532641763,-500.0,0.00013698,2]
[335853203,1724532641773,-500.0,0.00013698,2]
[335853204,1724532641783,-500.0,0.00013698,2]
[335853205,1724532641792,-500.0,0.00013698,2]
[335853206,1724532641802,-500.0,0.00013698,2]
[335853207,1724532641812,-502.2181315,0.00013698,2]
[335853208,1724532641822,-500.0,0.00013698,2]
[335853209,1724532641832,-500.0,0.00013698,2]
[335853210,1724532641844,-500.0,0.00013698,2]
[335853211,1724532641854,-500.0,0.00013698,2]
[335853212,1724532641864,-550.86,0.00013698,2]
[335853213,1724532641874,-500.0,0.00013698,2]
[335853214,1724532641885,-500.0,0.00013698,2]
[335853215,1724532641895,-500.0,0.00013698,2]
[335853216,1724532641905,-500.0,0.00013698,2]
[335853217,1724532641915,-500.0,0.00013698,2]
[335853218,1724532641925,-500.0,0.00013698,2]
[335853219,1724532641935,-500.0,0.00013698,2]
[335853220,1724532641945,-500.0,0.00013698,2]
[335853221,1724532641955,-500.0,0.00013698,2]
[335853222,1724532641966,-691.28,0.00013698,2]
[335853223,1724532641977,-709.26,0.00013698,2]
[335853224,1724532641986,-500.0,0.00013698,2]
[335853225,1724532641996,-500.0,0.00013698,2]
[335853226,1724532642006,-500.0,0.00013698,2]
[335853227,1724532642016,-500.0,0.00013698,2]
[335853228,1724532642026,-500.0,0.00013698,2]
[335853229,1724532642035,-500.0,0.00013698,2]
[335853230,1724532642044,-500.0,0.00013698,2]
[335853231,1724532642054,-500.0,0.00013698,2]
[335853232,1724532642064,-598.15978282,0.00013698,2]
[335853233,1724532642074,-545.72,0.00013698,2]
[335853234,1724532642083,-500.0,0.00013698,2]
[335853235,1724532642093,-650.17,0.00013698,2]
[335853236,1724532642103,-500.0,0.00013698,2]
[335853237,1724532642113,-500.0,0.00013698,2]
[335853238,1724532642123,-602.58,0.00013698,2]
[335853239,1724532642132,-531.61,0.00013698,2]
[335853240,1724532642142,-500.57804816,0.00013698,2]
[335853241,1724532642152,-500.0,0.00013698,2]
[335853242,1724532642162,-500.0,0.00013698,2]
[335853243,1724532642172,-500.0,0.00013698,2]
[335853244,1724532642181,-642.85,0.00013698,2]
[335853245,1724532642192,-500.0,0.00013698,2]
[335853246,1724532642201,-317.59539575,0.00013698,2]
[335853247,1724532642211,-500.0,0.00013698,2]
[335853248,1724532642221,-500.0,0.00013698,2]
[335853249,1724532642231,-500.0,0.00013698,2]
[335853250,1724532642239,-500.0,0.00013698,2]
[335853251,1724532642249,-611.63,0.00013698,2]
[335853252,1724532642258,-500.0,0.00013698,2]
[335853253,1724532642268,-500.0,0.00013698,2]
[335853254,1724532642277,-500.0,0.00013698,2]
[335853255,1724532642286,-500.0,0.00013698,2]
[335853256,1724532642295,-500.0,0.00013698,2]
[335853257,1724532642305,-500.0,0.00013698,2]
[335853258,1724532642314,-500.0,0.00013698,2]
[335853259,1724532642323,-500.0,0.00013698,2]
[335853260,1724532642333,-500.0,0.00013698,2]
[335853261,1724532642342,-500.0,0.00013698,2]
[335853262,1724532642351,-500.0,0.00013698,2]
[335853263,1724532642360,-500.0,0.00013698,2]
[335853264,1724532642370,-500.0,0.00013698,2]
[335853265,1724532642379,-500.0,0.00013698,2]
[335853266,1724532642389,-500.0,0.00013698,2]
[335853267,1724532642401,-500.0,0.00013698,2]
[335853268,1724532642410,-500.0,0.00013698,2]
[335853269,1724532642420,-534.63057297,0.00013698,2]
[335853271,1724532642431,-500.0,0.00013698,2]
[335853272,1724532642443,-500.0,0.00013698,2]
[335853273,1724532642453,-500.0,0.00013698,2]
[335853274,1724532642463,-500.0,0.00013698,2]
[335853275,1724532642474,-500.0,0.00013698,2]
[335853276,1724532642484,-679.17,0.00013698,2]
[335853277,1724532642493,-520.07231296,0.00013698,2]
[335853278,1724532642503,-591.79,0.00013698,2]
[335853279,1724532642513,-500.0,0.00013698,2]
[335853280,1724532642523,-500.0,0.00013698,2]
[335853281,1724532642532,-500.0,0.00013698,2]
[335853282,1724532642542,-500.0,0.00013698,2]
[335853283,1724532642551,-500.0,0.00013698,2]
[335853285,1724532642562,-500.0,0.00013698,2]
[335853287,1724532642571,-610.12,0.00013698,2]
[335853288,1724532642580,-500.0,0.00013698,2]
[335853290,1724532642590,-500.0,0.00013698,2]
[335853292,1724532642599,-500.0,0.00013698,2]
[335853294,1724532642611,-500.0,0.00013698,2]
[335853295,1724532642621,-500.0,0.00013698,2]
[335853296,1724532642631,-500.0,0.00013698,2]
[335853297,1724532642640,-500.0,0.00013698,2]
[335853298,1724532642650,-500.0,0.00013698,2]
[335853299,1724532642660,-500.0,0.00013698,2]
[335853300,1724532642669,-500.0,0.00013698,2]
[335853301,1724532642679,-500.0,0.00013698,2]
[335853302,1724532642688,-1094.16,0.00013698,2]
[335853304,1724532642698,-1094.16,0.00013698,2]
[335853306,1724532642707,-1094.16,0.00013698,2]
[335853307,1724532642717,-1094.16,0.00013698,2]
[335853308,1724532642727,-1094.16,0.00013698,2]
[335853309,1724532642736,-1094.16,0.00013698,2]
[335853310,1724532642746,-1094.16,0.00013698,2]
[335853311,1724532642756,-1094.16,0.00013698,2]
[335853312,1724532642765,-1094.16,0.00013698,2]
[335853313,1724532642775,-1094.16,0.00013698,2]
[335853314,1724532642785,-1094.16,0.00013698,2]
[335853315,1724532642794,-1094.16,0.00013698,2]
[335853316,1724532642804,-1094.16,0.00013698,2]
[335853317,1724532642813,-1094.16,0.00013698,2]
[335853318,1724532642823,-1094.16,0.00013698,2]
[335853320,1724532642833,-1094.16,0.00013698,2]
[335853321,1724532642842,-1094.16,0.00013698,2]
[335853322,1724532642853,-1094.16,0.00013698,2]
[335853324,1724532642863,-1094.16,0.00013698,2]
[335853325,1724532642873,-1094.16,0.00013698,2]
[335853327,1724532642884,-1094.16,0.00013698,2]
[335853328,1724532642894,-1094.16,0.00013698,2]
[335853329,1724532642904,-1094.16,0.00013698,2]
[335853330,1724532642914,-1094.35987016,0.00013698,2]
[335853331,1724532642923,-500.0,0.00013698,2]
[335853332,1724532642933,-653.34,0.00013698,2]
[335853334,1724532642942,-500.0,0.00013698,2]
[335853335,1724532642952,-500.0,0.00013698,2]
[335853336,1724532642962,-500.0,0.00013698,2]
[335853337,1724532642972,-502.89244034,0.00013698,2]
[335853338,1724532642981,-500.0,0.00013698,2]
[335853339,1724532642991,-500.0,0.00013698,2]
[335853340,1724532643000,-500.0,0.00013698,2]
[335853341,1724532643010,-500.0,0.00013698,2]
[335853342,1724532643019,-500.0,0.00013698,2]
[335853343,1724532643029,-802.25,0.00013698,2]